[Event "December 5 Late 2023"]
[Site "https://www.chess.com"]
[Date "2023.12.05"]
[Round "3"]
[White "Mekhitarian, Krikor Sevag"]
[Black "Nakamura, Hikaru"]
[Result "0-1"]
[Board "2"]
[TimeControl "180+1"]
[WhiteFideId "2107660"]
[BlackFideId "2016192"]
[WhiteElo "2847"]
[BlackElo "3239"]
[WhiteTeam "BRA"]
[BlackTeam "USA"]
[WhiteClock "0:00:00"]
[BlackClock "0:00:05"]

1. Nf3 {[%clk 0:03:00]}  g6 {[%clk 0:02:59]} 2. c4 {[%clk 0:03:00]}  Bg7 {[%clk 0:02:58]} 3. e4 {[%clk 0:03:01]}  e5 {[%clk 0:02:52]} 4. d4 {[%clk 0:03:00]}  d6 {[%clk 0:02:52]} 5. Nc3 {[%clk 0:02:43]}  Nc6 {[%clk 0:02:48]} 6. dxe5 {[%clk 0:02:33]}  dxe5 {[%clk 0:02:48]} 7. Qxd8+ {[%clk 0:02:33]}  Kxd8 {[%clk 0:02:49]} 8. Bg5+ {[%clk 0:02:30]}  f6 {[%clk 0:02:50]} 9. O-O-O+ {[%clk 0:02:30]}  Bd7 {[%clk 0:02:49]} 10. Be3 {[%clk 0:02:26]}  Kc8 {[%clk 0:02:42]} 11. c5 {[%clk 0:02:13]}  Be6 {[%clk 0:02:41]} 12. Bb5 {[%clk 0:02:07]}  Nd8 {[%clk 0:02:35]} 13. Kc2 {[%clk 0:02:02]}  Bh6 {[%clk 0:02:22]} 14. Bxh6 {[%clk 0:01:54]}  Nxh6 {[%clk 0:02:23]} 15. h3 {[%clk 0:01:55]}  c6 {[%clk 0:02:18]} 16. Ba4 {[%clk 0:01:55]}  Nhf7 {[%clk 0:02:17]} 17. Rd2 {[%clk 0:01:52]}  Re8 {[%clk 0:02:03]} 18. Rhd1 {[%clk 0:01:52]}  Re7 {[%clk 0:02:01]} 19. b4 {[%clk 0:01:42]}  Kc7 {[%clk 0:01:44]} 20. Bb3 {[%clk 0:01:39]}  Bxb3+ {[%clk 0:01:43]} 21. Kxb3 {[%clk 0:01:40]}  b6 {[%clk 0:01:22]} 22. cxb6+ {[%clk 0:01:32]}  axb6 {[%clk 0:01:21]} 23. a4 {[%clk 0:01:33]}  Ne6 {[%clk 0:01:17]} 24. g3 {[%clk 0:01:23]}  Rc8 {[%clk 0:00:59]} 25. h4 {[%clk 0:01:18]}  Kb7 {[%clk 0:00:58]} 26. Rd7+ {[%clk 0:01:16]}  Rc7 {[%clk 0:00:58]} 27. Rxe7 {[%clk 0:01:15]}  Rxe7 {[%clk 0:00:59]} 28. Nb1 {[%clk 0:01:07]}  f5 {[%clk 0:00:58]} 29. Nc3 {[%clk 0:01:06]}  h5 {[%clk 0:00:56]} 30. Kc4 {[%clk 0:00:49]}  Kc7 {[%clk 0:00:53]} 31. Kb3 {[%clk 0:00:49]}  f4 {[%clk 0:00:45]} 32. b5 {[%clk 0:00:40]}  Nd6 {[%clk 0:00:34]} 33. bxc6 {[%clk 0:00:34]}  Nc5+ {[%clk 0:00:35]} 34. Kb4 {[%clk 0:00:33]}  Kxc6 {[%clk 0:00:36]} 35. gxf4 {[%clk 0:00:20]}  exf4 {[%clk 0:00:37]} 36. e5 {[%clk 0:00:18]}  Nf5 {[%clk 0:00:37]} 37. Rg1 {[%clk 0:00:16]}  Rg7 {[%clk 0:00:27]} 38. Kc4 {[%clk 0:00:16]}  Nxa4 {[%clk 0:00:23]} 39. Nxa4 {[%clk 0:00:13]}  b5+ {[%clk 0:00:24]} 40. Kb4 {[%clk 0:00:13]}  bxa4 {[%clk 0:00:25]} 41. Kxa4 {[%clk 0:00:13]}  Kd5 {[%clk 0:00:25]} 42. Re1 {[%clk 0:00:08]}  Rb7 {[%clk 0:00:23]} 43. e6 {[%clk 0:00:08]}  Re7 {[%clk 0:00:21]} 44. Re5+ {[%clk 0:00:04]}  Kd6 {[%clk 0:00:20]} 45. Re4 {[%clk 0:00:04]}  Rxe6 {[%clk 0:00:18]} 46. Rxf4 {[%clk 0:00:05]}  Kd5 {[%clk 0:00:15]} 47. Kb4 {[%clk 0:00:04]}  Re4+ {[%clk 0:00:13]} 48. Rxe4 {[%clk 0:00:04]}  Kxe4 {[%clk 0:00:14]} 49. Nd2+ {[%clk 0:00:04]}  Kf4 {[%clk 0:00:14]} 50. Kc3 {[%clk 0:00:03]}  Nxh4 {[%clk 0:00:14]} 51. Kd3 {[%clk 0:00:03]}  Nf3 {[%clk 0:00:15]} 52. Nf1 {[%clk 0:00:03]}  h4 {[%clk 0:00:15]} 53. Ke2 {[%clk 0:00:01]}  Nd4+ {[%clk 0:00:15]} 54. Kd3 {[%clk 0:00:02]}  Ne6 {[%clk 0:00:09]} 55. Ke2 {[%clk 0:00:02]}  h3 {[%clk 0:00:07]} 56. Ng3 {[%clk 0:00:01]}  Nd4+ {[%clk 0:00:07]} 57. Kf1 {[%clk 0:00:01]}  Nf3 {[%clk 0:00:08]} 58. Ne2+ {[%clk 0:00:01]}  Ke4 {[%clk 0:00:06]} 59. Ng3+ {[%clk 0:00:02]}  Kd3 {[%clk 0:00:07]} 60. Nh1 {[%clk 0:00:01]}  g5 {[%clk 0:00:07]} 61. Ng3 {[%clk 0:00:01]}  Kd4 {[%clk 0:00:06]} 62. Nf5+ {[%clk 0:00:02]}  Ke5 {[%clk 0:00:07]} 63. Ng3 {[%clk 0:00:02]}  Kf4 {[%clk 0:00:07]} 64. Nh1 {[%clk 0:00:03]}  Nd2+ {[%clk 0:00:08]} 65. Kg1 {[%clk 0:00:02]}  g4 {[%clk 0:00:07]} 66. Ng3 {[%clk 0:00:02]}  Kf3 {[%clk 0:00:06]} 67. Nf5 {[%clk 0:00:01]}  h2+ {[%clk 0:00:04]} 68. Kxh2 {[%clk 0:00:01]}  Kxf2 {[%clk 0:00:05]} 69. Kh1 {[%clk 0:00:01]}  Nf1 {[%clk 0:00:05]} 70. Nh4 {[%clk 0:00:01]}  Ne3 {[%clk 0:00:03]} 71. Kh2 {[%clk 0:00:01]}  g3+ {[%clk 0:00:03]} 72. Kh1 {[%clk 0:00:01]}  Nd5 {[%clk 0:00:04]} 73. Ng2 {[%clk 0:00:02]}  Nc3 {[%clk 0:00:03]} 74. Nf4 {[%clk 0:00:02]}  Ne4 {[%clk 0:00:04]} 75. Ng2 {[%clk 0:00:02]}  Ng5 {[%clk 0:00:03]} 76. Nf4 {[%clk 0:00:02]}  Ne6 {[%clk 0:00:04]} 77. Ng2 {[%clk 0:00:02]}  Kf3 {[%clk 0:00:03]} 78. Nh4+ {[%clk 0:00:03]}  Kg4 {[%clk 0:00:04]} 79. Ng2 {[%clk 0:00:04]}  Nd4 {[%clk 0:00:04]} 80. Ne3+ {[%clk 0:00:04]}  Kf3 {[%clk 0:00:04]} 81. Ng2 {[%clk 0:00:03]}  Kf2 {[%clk 0:00:04]} 82. Nh4 {[%clk 0:00:03]}  Nf3 {[%clk 0:00:05]} 83. Ng2 {[%clk 0:00:03]}  Ke2 {[%clk 0:00:05]} 84. Nf4+ {[%clk 0:00:03]}  Ke3 {[%clk 0:00:06]} 85. Ng2+ {[%clk 0:00:04]}  Kf2 {[%clk 0:00:07]} 86. Nf4 {[%clk 0:00:04]}  Nh4 {[%clk 0:00:07]} 87. Nh3+ {[%clk 0:00:03]}  Ke2 {[%clk 0:00:08]} 88. Kg1 {[%clk 0:00:01]}  Ke3 {[%clk 0:00:08]} 89. Ng5 {[%clk 0:00:01]}  Kf4 {[%clk 0:00:08]} 90. Nh3+ {[%clk 0:00:01]}  Kg4 {[%clk 0:00:07]} 91. Nf2+ {[%clk 0:00:02]}  Kf3 {[%clk 0:00:08]} 92. Nh3 {[%clk 0:00:03]}  g2 {[%clk 0:00:03]} 93. Ng5+ {[%clk 0:00:03]}  Kf4 {[%clk 0:00:02]} 94. Nh3+ {[%clk 0:00:03]}  Kg3 {[%clk 0:00:03]} 95. Ng5 {[%clk 0:00:02]}  Nf3+ {[%clk 0:00:03]} 96. Nxf3 {[%clk 0:00:01]}  Kxf3 {[%clk 0:00:04]} 97. Kh2 {[%clk 0:00:00]}  Kf2 {[%clk 0:00:05]} 0-1

[Event "December 5 Late 2023"]
[Site "https://www.chess.com"]
[Date "2023.12.05"]
[Round "3"]
[White "Rustemov, Alexander"]
[Black "Firouzja, Alireza"]
[Result "0-1"]
[Board "4"]
[TimeControl "180+1"]
[WhiteFideId "4119002"]
[BlackFideId "12573981"]
[WhiteElo "2834"]
[BlackElo "3153"]
[WhiteTeam "RUS"]
[BlackTeam "FRA"]
[WhiteClock "0:00:04"]
[BlackClock "0:00:37"]

1. d4 {[%clk 0:03:00]}  d5 {[%clk 0:02:56]} 2. c4 {[%clk 0:03:01]}  e6 {[%clk 0:02:57]} 3. Nc3 {[%clk 0:03:01]}  Nf6 {[%clk 0:02:57]} 4. cxd5 {[%clk 0:03:00]}  exd5 {[%clk 0:02:57]} 5. Bg5 {[%clk 0:03:00]}  c6 {[%clk 0:02:57]} 6. e3 {[%clk 0:03:00]}  Bd6 {[%clk 0:02:58]} 7. Qc2 {[%clk 0:02:59]}  O-O {[%clk 0:02:56]} 8. Bd3 {[%clk 0:02:58]}  h6 {[%clk 0:02:56]} 9. Bh4 {[%clk 0:02:57]}  Re8 {[%clk 0:02:53]} 10. Nge2 {[%clk 0:02:56]}  Be6 {[%clk 0:02:53]} 11. h3 {[%clk 0:02:55]}  Nbd7 {[%clk 0:02:53]} 12. O-O {[%clk 0:02:51]}  Rc8 {[%clk 0:02:49]} 13. Rad1 {[%clk 0:02:50]}  Qc7 {[%clk 0:02:47]} 14. Bg3 {[%clk 0:02:48]}  Bxg3 {[%clk 0:02:44]} 15. Nxg3 {[%clk 0:02:48]}  Qd6 {[%clk 0:02:44]} 16. Nge2 {[%clk 0:02:42]}  Nb6 {[%clk 0:02:39]} 17. b3 {[%clk 0:02:41]}  Rc7 {[%clk 0:02:39]} 18. Qd2 {[%clk 0:02:40]}  Bc8 {[%clk 0:02:38]} 19. Ng3 {[%clk 0:02:31]}  Rce7 {[%clk 0:02:38]} 20. Rfe1 {[%clk 0:02:18]}  Na8 {[%clk 0:02:34]} 21. Na4 {[%clk 0:02:13]}  Nc7 {[%clk 0:02:33]} 22. Rc1 {[%clk 0:02:11]}  g6 {[%clk 0:02:31]} 23. Nc5 {[%clk 0:02:09]}  h5 {[%clk 0:02:30]} 24. Ne2 {[%clk 0:02:05]}  b6 {[%clk 0:02:23]} 25. Na4 {[%clk 0:02:04]}  Ne6 {[%clk 0:02:23]} 26. Rc2 {[%clk 0:01:55]}  Bd7 {[%clk 0:02:22]} 27. Nac3 {[%clk 0:01:52]}  Ng5 {[%clk 0:02:22]} 28. Nf4 {[%clk 0:01:51]}  c5 {[%clk 0:01:56]} 29. dxc5 {[%clk 0:01:40]}  bxc5 {[%clk 0:01:56]} 30. Bc4 {[%clk 0:01:32]}  d4 {[%clk 0:01:17]} 31. Nxg6 {[%clk 0:01:23]}  Re4 {[%clk 0:01:00]} 32. Nf4 {[%clk 0:01:19]}  R4e5 {[%clk 0:00:59]} 33. Qd3 {[%clk 0:01:12]}  Bf5 {[%clk 0:00:57]} 34. Nb5 {[%clk 0:01:01]}  Bxd3 {[%clk 0:00:54]} 35. Nxd6 {[%clk 0:01:01]}  Bxc2 {[%clk 0:00:55]} 36. Nxe8 {[%clk 0:00:58]}  Rxe8 {[%clk 0:00:49]} 37. Rc1 {[%clk 0:00:55]}  Bf5 {[%clk 0:00:45]} 38. exd4 {[%clk 0:00:48]}  cxd4 {[%clk 0:00:45]} 39. Bd3 {[%clk 0:00:47]}  Bxd3 {[%clk 0:00:44]} 40. Nxd3 {[%clk 0:00:48]}  Re2 {[%clk 0:00:44]} 41. Rc5 {[%clk 0:00:34]}  Nge4 {[%clk 0:00:41]} 42. Ra5 {[%clk 0:00:32]}  Rd2 {[%clk 0:00:41]} 43. Ne5 {[%clk 0:00:20]}  d3 {[%clk 0:00:41]} 44. Rxa7 {[%clk 0:00:17]}  Rd1+ {[%clk 0:00:40]} 45. Kh2 {[%clk 0:00:18]}  d2 {[%clk 0:00:38]} 46. Nf3 {[%clk 0:00:04]}  Rh1+ {[%clk 0:00:37]} 0-1

[Event "December 5 Late 2023"]
[Site "https://www.chess.com"]
[Date "2023.12.05"]
[Round "3"]
[White "Aronian, Levon"]
[Black "Bordi, Kevin"]
[Result "1-0"]
[Board "5"]
[TimeControl "180+1"]
[WhiteFideId "13300474"]
[BlackFideId "621862"]
[WhiteElo "3117"]
[BlackElo "2831"]
[WhiteTeam "USA"]
[BlackTeam "MNC"]
[WhiteClock "0:02:01"]
[BlackClock "0:00:46"]

1. e4 {[%clk 0:03:00]}  d5 {[%clk 0:03:00]} 2. exd5 {[%clk 0:03:00]}  Qxd5 {[%clk 0:03:01]} 3. Nc3 {[%clk 0:03:01]}  Qa5 {[%clk 0:03:01]} 4. Bc4 {[%clk 0:03:01]}  Nf6 {[%clk 0:03:01]} 5. d3 {[%clk 0:03:01]}  c6 {[%clk 0:03:01]} 6. Qe2 {[%clk 0:03:01]}  b5 {[%clk 0:02:59]} 7. Bb3 {[%clk 0:03:00]}  Nbd7 {[%clk 0:02:59]} 8. Bd2 {[%clk 0:02:54]}  Qc7 {[%clk 0:02:58]} 9. Nf3 {[%clk 0:02:47]}  Nc5 {[%clk 0:02:56]} 10. Ne5 {[%clk 0:02:46]}  e6 {[%clk 0:02:52]} 11. d4 {[%clk 0:02:44]}  Nxb3 {[%clk 0:02:51]} 12. axb3 {[%clk 0:02:45]}  Bd6 {[%clk 0:02:49]} 13. Bg5 {[%clk 0:02:37]}  Bb7 {[%clk 0:02:41]} 14. Nd3 {[%clk 0:02:31]}  Nd5 {[%clk 0:02:20]} 15. Ne4 {[%clk 0:02:31]}  O-O {[%clk 0:01:43]} 16. Nxd6 {[%clk 0:02:30]}  Qxd6 {[%clk 0:01:44]} 17. O-O {[%clk 0:02:30]}  Rfe8 {[%clk 0:01:42]} 18. Rfe1 {[%clk 0:02:28]}  a5 {[%clk 0:01:40]} 19. Qg4 {[%clk 0:02:20]}  f6 {[%clk 0:01:22]} 20. Bh6 {[%clk 0:02:14]}  g6 {[%clk 0:01:22]} 21. Nc5 {[%clk 0:02:05]}  Bc8 {[%clk 0:01:22]} 22. Qf3 {[%clk 0:02:01]}  e5 {[%clk 0:01:18]} 23. c4 {[%clk 0:02:01]}  bxc4 {[%clk 0:01:16]} 24. bxc4 {[%clk 0:02:01]}  Nb4 {[%clk 0:00:46]} 25. Ne4 {[%clk 0:02:01]} 1-0

[Event "December 5 Late 2023"]
[Site "https://www.chess.com"]
[Date "2023.12.05"]
[Round "3"]
[White "Nepomniachtchi, Ian"]
[Black "Yuan, Qingyu"]
[Result "1-0"]
[Board "6"]
[TimeControl "180+1"]
[WhiteFideId "4168119"]
[BlackFideId "8609772"]
[WhiteElo "3104"]
[BlackElo "2827"]
[WhiteTeam "RUS"]
[BlackTeam "CHN"]
[WhiteClock "0:00:22"]
[BlackClock "0:00:00"]

1. e4 {[%clk 0:03:00]}  e5 {[%clk 0:03:00]} 2. f4 {[%clk 0:03:00]}  d5 {[%clk 0:03:00]} 3. exd5 {[%clk 0:03:00]}  exf4 {[%clk 0:03:01]} 4. Nf3 {[%clk 0:03:00]}  Nf6 {[%clk 0:03:01]} 5. Bb5+ {[%clk 0:03:00]}  c6 {[%clk 0:03:01]} 6. dxc6 {[%clk 0:03:01]}  Nxc6 {[%clk 0:03:02]} 7. Nc3 {[%clk 0:03:01]}  Be6 {[%clk 0:02:51]} 8. Qe2 {[%clk 0:02:59]}  Bd6 {[%clk 0:02:49]} 9. Nd4 {[%clk 0:02:58]}  O-O {[%clk 0:02:45]} 10. Nxe6 {[%clk 0:02:59]}  fxe6 {[%clk 0:02:45]} 11. Bxc6 {[%clk 0:02:59]}  bxc6 {[%clk 0:02:45]} 12. b3 {[%clk 0:02:59]}  e5 {[%clk 0:02:42]} 13. Bb2 {[%clk 0:02:58]}  e4 {[%clk 0:02:40]} 14. O-O-O {[%clk 0:02:58]}  Re8 {[%clk 0:02:27]} 15. Rhe1 {[%clk 0:02:55]}  Kh8 {[%clk 0:02:24]} 16. Qc4 {[%clk 0:02:55]}  Qe7 {[%clk 0:02:12]} 17. Qxc6 {[%clk 0:02:50]}  Rac8 {[%clk 0:02:04]} 18. Qa4 {[%clk 0:02:48]}  Bb4 {[%clk 0:01:55]} 19. Kb1 {[%clk 0:02:48]}  e3 {[%clk 0:01:52]} 20. a3 {[%clk 0:02:11]}  Bxc3 {[%clk 0:01:42]} 21. dxc3 {[%clk 0:02:11]}  Ne4 {[%clk 0:01:38]} 22. c4 {[%clk 0:02:06]}  Rcd8 {[%clk 0:01:37]} 23. Qa5 {[%clk 0:01:56]}  Rd2 {[%clk 0:01:30]} 24. Qf5 {[%clk 0:01:51]}  Rf8 {[%clk 0:01:12]} 25. Qh5 {[%clk 0:01:49]}  Rxg2 {[%clk 0:01:06]} 26. Qd5 {[%clk 0:01:08]}  Rd2 {[%clk 0:00:50]} 27. Rxd2 {[%clk 0:01:06]}  Nxd2+ {[%clk 0:00:50]} 28. Ka2 {[%clk 0:01:06]}  f3 {[%clk 0:00:40]} 29. Qd4 {[%clk 0:00:58]}  f2 {[%clk 0:00:10]} 30. Rxe3 {[%clk 0:00:48]}  Qf7 {[%clk 0:00:11]} 31. Rg3 {[%clk 0:00:38]}  Rg8 {[%clk 0:00:08]} 32. Rxg7 {[%clk 0:00:29]}  Rxg7 {[%clk 0:00:09]} 33. Qd8+ {[%clk 0:00:27]}  Qg8 {[%clk 0:00:09]} 34. Bxg7+ {[%clk 0:00:27]}  Kxg7 {[%clk 0:00:10]} 35. Qd4+ {[%clk 0:00:28]}  Kg6 {[%clk 0:00:05]} 36. Qxf2 {[%clk 0:00:26]}  Qd8 {[%clk 0:00:04]} 37. Qxa7 {[%clk 0:00:25]}  Qd6 {[%clk 0:00:03]} 38. Qg1+ {[%clk 0:00:23]}  Kf7 {[%clk 0:00:02]} 39. Qf2+ {[%clk 0:00:22]}  Ke6 {[%clk 0:00:00]} 40. Qe3+ {[%clk 0:00:22]} 1-0

[Event "December 5 Late 2023"]
[Site "https://www.chess.com"]
[Date "2023.12.05"]
[Round "3"]
[White "Gadimbayli, Abdulla"]
[Black "Erigaisi Arjun"]
[Result "0-1"]
[Board "7"]
[TimeControl "180+1"]
[WhiteFideId "13404938"]
[BlackFideId "35009192"]
[WhiteElo "2824"]
[BlackElo "3102"]
[WhiteTeam "AZE"]
[BlackTeam "IND"]
[WhiteClock "0:00:04"]
[BlackClock "0:00:41"]

1. e4 {[%clk 0:03:00]}  g6 {[%clk 0:02:58]} 2. d4 {[%clk 0:03:00]}  Bg7 {[%clk 0:02:59]} 3. Nc3 {[%clk 0:03:00]}  d6 {[%clk 0:02:59]} 4. Nf3 {[%clk 0:03:00]}  a6 {[%clk 0:02:59]} 5. Be2 {[%clk 0:03:01]}  b5 {[%clk 0:03:00]} 6. O-O {[%clk 0:03:02]}  Bb7 {[%clk 0:03:00]} 7. Re1 {[%clk 0:03:02]}  Nd7 {[%clk 0:03:00]} 8. a4 {[%clk 0:03:02]}  b4 {[%clk 0:03:00]} 9. Na2 {[%clk 0:03:03]}  Ngf6 {[%clk 0:02:58]} 10. e5 {[%clk 0:03:03]}  Nd5 {[%clk 0:02:58]} 11. e6 {[%clk 0:03:03]}  fxe6 {[%clk 0:02:58]} 12. Ng5 {[%clk 0:03:03]}  Nf8 {[%clk 0:02:51]} 13. Bg4 {[%clk 0:03:03]}  e5 {[%clk 0:02:51]} 14. Qf3 {[%clk 0:02:52]}  Bf6 {[%clk 0:02:38]} 15. Ne6 {[%clk 0:02:36]}  Nxe6 {[%clk 0:02:37]} 16. Bxe6 {[%clk 0:02:37]}  c6 {[%clk 0:02:37]} 17. dxe5 {[%clk 0:02:28]}  dxe5 {[%clk 0:02:38]} 18. Rxe5 {[%clk 0:02:29]}  Qd6 {[%clk 0:02:35]} 19. Re1 {[%clk 0:02:25]}  Bc8 {[%clk 0:02:11]} 20. Bxd5 {[%clk 0:02:03]}  cxd5 {[%clk 0:02:11]} 21. Bf4 {[%clk 0:02:03]}  Qc5 {[%clk 0:02:12]} 22. Be3 {[%clk 0:01:51]}  Qc4 {[%clk 0:01:58]} 23. Bh6 {[%clk 0:01:39]}  Bxb2 {[%clk 0:01:48]} 24. Rad1 {[%clk 0:00:53]}  Qxa2 {[%clk 0:01:24]} 25. Rxd5 {[%clk 0:00:53]}  Ra7 {[%clk 0:01:25]} 26. Rc5 {[%clk 0:00:40]}  Bf5 {[%clk 0:01:12]} 27. Qe3 {[%clk 0:00:34]}  Rd7 {[%clk 0:00:56]} 28. c4 {[%clk 0:00:27]}  Bd4 {[%clk 0:00:53]} 29. Rc8+ {[%clk 0:00:14]}  Kf7 {[%clk 0:00:53]} 30. Rxh8 {[%clk 0:00:15]}  Bxe3 {[%clk 0:00:54]} 31. Rf8+ {[%clk 0:00:14]}  Ke6 {[%clk 0:00:54]} 32. Rxe3+ {[%clk 0:00:15]}  Kd6 {[%clk 0:00:54]} 33. Bf4+ {[%clk 0:00:16]}  Kc6 {[%clk 0:00:46]} 34. h3 {[%clk 0:00:11]}  Rd1+ {[%clk 0:00:41]} 35. Kh2 {[%clk 0:00:04]}  Qxf2 {[%clk 0:00:41]} 0-1

[Event "December 5 Late 2023"]
[Site "https://www.chess.com"]
[Date "2023.12.05"]
[Round "3"]
[White "Nihal Sarin"]
[Black "Holt, Conrad"]
[Result "1-0"]
[Board "8"]
[TimeControl "180+1"]
[WhiteFideId "25092340"]
[BlackFideId "2034387"]
[WhiteElo "3090"]
[BlackElo "2801"]
[WhiteTeam "IND"]
[BlackTeam "USA"]
[WhiteClock "0:00:24"]
[BlackClock "0:00:00"]

1. d4 {[%clk 0:02:06]}  d5 {[%clk 0:02:58]} 2. c4 {[%clk 0:02:06]}  c6 {[%clk 0:02:58]} 3. Nf3 {[%clk 0:02:05]}  Nf6 {[%clk 0:02:58]} 4. Nc3 {[%clk 0:02:04]}  dxc4 {[%clk 0:02:58]} 5. a4 {[%clk 0:02:04]}  Bf5 {[%clk 0:02:57]} 6. Ne5 {[%clk 0:02:02]}  Nbd7 {[%clk 0:02:57]} 7. Nxc4 {[%clk 0:01:59]}  Nb6 {[%clk 0:02:57]} 8. Ne5 {[%clk 0:01:59]}  a5 {[%clk 0:02:56]} 9. e3 {[%clk 0:02:00]}  g6 {[%clk 0:02:54]} 10. Bd3 {[%clk 0:01:54]}  Bxd3 {[%clk 0:02:53]} 11. Nxd3 {[%clk 0:01:54]}  Bg7 {[%clk 0:02:53]} 12. O-O {[%clk 0:01:54]}  O-O {[%clk 0:02:51]} 13. Qb3 {[%clk 0:01:54]}  Nfd7 {[%clk 0:02:50]} 14. Rd1 {[%clk 0:01:53]}  Qc7 {[%clk 0:02:43]} 15. h3 {[%clk 0:01:53]}  Rad8 {[%clk 0:02:38]} 16. Bd2 {[%clk 0:01:53]}  e5 {[%clk 0:02:37]} 17. d5 {[%clk 0:01:47]}  e4 {[%clk 0:02:30]} 18. Nxe4 {[%clk 0:01:27]}  cxd5 {[%clk 0:02:12]} 19. Rac1 {[%clk 0:01:26]}  Nc4 {[%clk 0:02:11]} 20. Nc3 {[%clk 0:01:25]}  Nc5 {[%clk 0:01:48]} 21. Nxc5 {[%clk 0:01:25]}  Qxc5 {[%clk 0:01:48]} 22. Be1 {[%clk 0:01:26]}  Qb4 {[%clk 0:01:31]} 23. Qxb4 {[%clk 0:01:17]}  axb4 {[%clk 0:01:32]} 24. Nxd5 {[%clk 0:01:18]}  Nxb2 {[%clk 0:01:32]} 25. Ne7+ {[%clk 0:01:18]}  Kh8 {[%clk 0:01:32]} 26. Rxd8 {[%clk 0:01:19]}  Rxd8 {[%clk 0:01:32]} 27. Bxb4 {[%clk 0:01:17]}  Nxa4 {[%clk 0:01:26]} 28. g4 {[%clk 0:01:11]}  h6 {[%clk 0:01:13]} 29. Rc7 {[%clk 0:01:10]}  b5 {[%clk 0:01:04]} 30. Rb7 {[%clk 0:01:08]}  Nc3 {[%clk 0:00:50]} 31. Bxc3 {[%clk 0:01:06]}  Bxc3 {[%clk 0:00:51]} 32. Rxb5 {[%clk 0:01:06]}  Kg7 {[%clk 0:00:47]} 33. Kg2 {[%clk 0:01:06]}  Rd7 {[%clk 0:00:45]} 34. Nd5 {[%clk 0:01:06]}  Ba1 {[%clk 0:00:44]} 35. h4 {[%clk 0:01:01]}  Kh7 {[%clk 0:00:41]} 36. f4 {[%clk 0:00:59]}  Ra7 {[%clk 0:00:38]} 37. Kf3 {[%clk 0:00:59]}  Kg7 {[%clk 0:00:37]} 38. h5 {[%clk 0:00:59]}  g5 {[%clk 0:00:32]} 39. fxg5 {[%clk 0:00:56]}  hxg5 {[%clk 0:00:32]} 40. Nb6 {[%clk 0:00:50]}  Kh6 {[%clk 0:00:29]} 41. Nc4 {[%clk 0:00:50]}  Ra6 {[%clk 0:00:25]} 42. Rd5 {[%clk 0:00:43]}  Rf6+ {[%clk 0:00:23]} 43. Ke2 {[%clk 0:00:36]}  Rc6 {[%clk 0:00:22]} 44. Rd6+ {[%clk 0:00:33]}  Rxd6 {[%clk 0:00:20]} 45. Nxd6 {[%clk 0:00:33]}  Kg7 {[%clk 0:00:19]} 46. Kf3 {[%clk 0:00:34]}  Kf6 {[%clk 0:00:18]} 47. Ke4 {[%clk 0:00:34]}  Ke6 {[%clk 0:00:19]} 48. Nf5 {[%clk 0:00:34]}  Bb2 {[%clk 0:00:18]} 49. Nd4+ {[%clk 0:00:34]}  Kf6 {[%clk 0:00:18]} 50. Kd5 {[%clk 0:00:35]}  Bc1 {[%clk 0:00:17]} 51. e4 {[%clk 0:00:32]}  Bf4 {[%clk 0:00:16]} 52. Nc6 {[%clk 0:00:32]}  Bd2 {[%clk 0:00:14]} 53. e5+ {[%clk 0:00:32]}  Kg7 {[%clk 0:00:15]} 54. Ke4 {[%clk 0:00:32]}  Bc1 {[%clk 0:00:15]} 55. Kf5 {[%clk 0:00:33]}  Bd2 {[%clk 0:00:14]} 56. Nd4 {[%clk 0:00:28]}  Bc3 {[%clk 0:00:09]} 57. Nf3 {[%clk 0:00:26]}  f6 {[%clk 0:00:07]} 58. exf6+ {[%clk 0:00:25]}  Bxf6 {[%clk 0:00:08]} 59. Nxg5 {[%clk 0:00:26]}  Bb2 {[%clk 0:00:07]} 60. Ne4 {[%clk 0:00:26]}  Bc1 {[%clk 0:00:08]} 61. g5 {[%clk 0:00:27]}  Kf7 {[%clk 0:00:07]} 62. h6 {[%clk 0:00:26]}  Kf8 {[%clk 0:00:07]} 63. Kg6 {[%clk 0:00:24]}  Bb2 {[%clk 0:00:00]} 64. Kh7 {[%clk 0:00:24]} 1-0